Cogmind - Beta 16 @@@ ROGUE MODE // 2025.10.25 @ 19:31:31 Player: Mxykikker Result: Destroyed by Shrapnel Trap Performance ------------- Evolutions (0) 0 Regions Visited (2) 400 Robots Destroyed (19) 95 Value Destroyed (634) 634 Prototype IDs (12) 240 Alien Tech Used (0) 0 Bonus (0) 0 TOTAL SCORE: 1369 Bonus ------- None Cogmind --------- Core Integrity 0/250 Matter 300/300 Energy 178/180 System Corruption 0% Temperature Cool (0) Movement Rolling (110) Location -10/Subcaves Parts ------- > --- POWER (1) -------- Meta Core > --- PROPULSION (2+1) - Subdweller Monowheel Subdweller Monowheel > --- UTILITY (2+1) ---- Large Storage Unit > --- WEAPON (2+1) ----- Subdweller Beam Cannon Subdweller Machine Gun > --- INVENTORY (15) --- Subdweller Power Source Subdweller Power Source Subdweller Power Source Makeshift Power Source Subdweller Optics Makeshift Hacking Suite Subdweller Laser Peak State ------------ > --- POWER ------------ Meta Core > --- PROPULSION ------- Subdweller Monowheel Subdweller Monowheel > --- UTILITY ---------- Large Storage Unit > --- WEAPON ----------- Subdweller Beam Cannon Subdweller Machine Gun > --- INVENTORY -------- Subdweller Power Source Subdweller Power Source Subdweller Power Source Makeshift Power Source Subdweller Optics Makeshift Hacking Suite Subdweller Laser [Rating: 23] Favorites ----------- Power Makeshift Power Source Engine Makeshift Power Source Power Core Meta Core Propulsion Light Treads Treads Light Treads Wheel Compact Wheel Utility Large Storage Unit Storage Large Storage Unit Weapon Subdweller Beam Cannon Energy Gun EM Pulse Gun Energy Cannon Subdweller Beam Cannon Ballistic Gun Subdweller Machine Gun Ballistic Cannon Light Cannon Launcher Grenade Launcher Build | -11 -10 -10 ------- Run | Yrd Mat Sub Slots Evolved . | . . . Power . | . . . Propulsion . | . . . Utility . | . . . Weapon . | . . . Parts Attached 24 | 6 7 11 Power 6 | 1 1 4 Engine 5 | 1 1 3 Core 1 | . . 1 Reactor . | . . . Propulsion 6 | 2 . 4 Treads 2 | . . 2 Leg . | . . . Wheel 4 | 2 . 2 Hover . | . . . Flight . | . . . Utility 2 | 1 1 . Device . | . . . Storage 2 | 1 1 . Processor . | . . . Hackware . | . . . Protection . | . . . Artifact . | . . . Weapon 10 | 2 5 3 Energy Gun 2 | 2 . . Energy Cannon 5 | . 4 1 Ballistic Gun 1 | . . 1 Ballistic Cannon 1 | . . 1 Launcher 1 | . 1 . Special Weapon . | . . . Impact Weapon . | . . . Slashing Weapon . | . . . Piercing Weapon . | . . . Special Melee Weapon . | . . . Unidentified Prototypes . | . . . Parts Lost 9 | . 1 8 Power 1 | . . 1 Propulsion 3 | . . 3 Utility . | . . . Weapon 5 | . 1 4 Highest Loss Streak 5 | . 1 5 To Critical Strikes . | . . . Average Backups 4 | . 3 4 Power 1 | . . 2 Propulsion 1 | . 2 . Utility . | . . . Weapon . | . . . Tool/Special . | . . . Unused Backups 4 | . . 4 Power 1 | . . 1 Propulsion . | . . . Utility 2 | . . 2 Weapon 1 | . . 1 Tool/Special . | . . . Average Slot Usage (%) 73 | . 80 72 Engine 10 | . 14 9 Treads 17 | . . 20 Wheel 6 | . 28 3 Storage 13 | . 14 13 Energy Cannon 12 | . 22 10 Ballistic Gun 3 | . . 4 Ballistic Cannon 7 | . . 8 Peak Build Rating 23 | 6 9 23 Average Rating 7 | 4 7 8 On Entrance 4 | . 6 8 Avg Prop Armor Cover (%) . | . . . Naked Turns . | . . . Heaviest Build 38 | 13 33 38 Greatest Support 40 | 32 32 40 Greatest Overweight (x) 1 | . 1 1 Average Overweight (x) . | . . . Largest Inventory Capacity 15 | 8 15 15 Average Capacity 14 | 6 12 15 Most Carried 7 | 2 4 7 Average Carried 4 | . 2 4 Final Capacity 15 | 8 15 15 Final Carried 7 | 2 3 7 Class Distribution -------------------- 100% | Mutant Dominant Class ---------------- Mutant | -10/Materials Mutant | -10/Subcaves Resources | -11 -10 -10 ----------- Run | Yrd Mat Sub Matter Collected 675 | 201 114 360 Remotely . | . . . Salvage Created 677 | . 186 491 Parts 37 | . 13 24 Haulers Intercepted . | . . . Recyclers Shooed . | . . . Parts Field Recycled . | . . . Retrieved Matter . | . . . Parts Self-Destructed 8 | . . 8 Prevented 1 | . . 1 Parts Restored . | . . . Kills | -11 -10 -10 ------- Run | Yrd Mat Sub Combat Hostiles Destroyed 17 | . 5 12 Guns 2 | . . 2 Cannons 12 | . 3 9 AOE 1 | . 1 . Classes Destroyed 5 | . 4 1 Operator 1 | . 1 . Watcher 1 | . 1 . Swarmer 3 | . 3 . Grunt 4 | . 2 2 Subdweller 10 | . . 10 Best Kill Streak 3 | . 2 3 Combat Bots Only 3 | . 2 3 Max Kills in Single Turn 1 | . 1 1 Gunslinging . | . . . Exploded 1 | . 1 . Melee . | . . . Uniques/NPCs Destroyed . | . . . Combat | -11 -10 -10 -------- Run | Yrd Mat Sub Hostile Shots Fired 90 | . 25 65 Missed 32 | . 7 25 Hits 58 | . 18 40 Projectile 58 | . 18 40 AOE 5 | . . 5 Critical Strikes 1 | . 1 . Damage Taken 1370 | . 194 1176 Core 260 | . 22 238 Absorbed by Shields . | . . . Core Remaining (%) 100 | 100 . . Volleys Fired 85 | . 13 72 Largest 2 | . 2 2 Hottest 112 | . 112 112 Shots Fired 134 | . 24 110 Gun 15 | . . 15 Cannon 117 | . 23 94 Launcher 2 | . 1 1 Special . | . . . Kinetic 63 | . . 63 Thermal 25 | . . 25 Explosive 2 | . 1 1 Electromagnetic 44 | . 23 21 Robot Hit Streak 8 | . 5 8 Robot Miss Streak 3 | . 3 2 Penetration Max . | . . . Secondary Targets . | . . . Shots Hit Robots 79 | . 14 65 Core Hits 29 | . 8 21 Critical Kills 1 | . . 1 Critical Parts Destroyed . | . . . Critical Strikes 5 | . . 5 Meltdown 1 | . . 1 Blast 3 | . . 3 Corrupt 1 | . . 1 Melee Attacks . | . . . Impact . | . . . Slashing . | . . . Piercing . | . . . Sneak Attacks . | . . . Combat Hostiles . | . . . Follow-up Attacks . | . . . Damage Inflicted 1833 | . 420 1413 Guns 146 | . . 146 Cannons 1589 | . 352 1237 Explosions 98 | . 68 30 Melee . | . . . Ramming . | . . . Kinetic 577 | . . 577 Thermal 463 | . . 463 Explosive 98 | . 68 30 Electromagnetic 695 | . 352 343 Impact . | . . . Slashing . | . . . Piercing . | . . . Highest Corruption . | . . . Average Corruption . | . . . Corruption Purged . | . . . Corruption Blocked . | . . . Overload Shots . | . . . Overflow Damage . | . . . Projectiles . | . . . Explosions . | . . . Melee . | . . . Knockbacks 3 | . . 3 Impact . | . . . Kinetic 3 | . . 3 Secondary . | . . . Self-Inflicted Damage . | . . . Shots . | . . . Rammed . | . . . Targets Rammed . | . . . Kicked . | . . . Crushed . | . . . Highest Temperature 204 | . 204 57 Average Temperature 46 | . 71 17 Received Heat Transfer 213 | . 60 153 Siege Activations . | . . . Martial Activations . | . . . Shielding Activations . | . . . Robots Disrupted . | . . . Combat Hostiles . | . . . Robots Corrupted 1 | . 1 . Combat Hostiles 1 | . 1 . Parts Fried 3 | . 1 2 Impact Corruptions . | . . . Robots Melted 1 | . . 1 Combat Hostiles 1 | . . 1 Parts Melted 1 | . . 1 Heat Transferred 629 | . . 629 Parts Sabotaged . | . . . Parts Stolen . | . . . Parts Stripped . | . . . Power Chain Reactions . | . . . Alert | -11 -10 -10 ------- Run | Yrd Mat Sub Maximum Alert Level . | . . . Low Security (%) 100 | 100 100 . Level 1 . | . . . Level 2 . | . . . Level 3 . | . . . Level 4 . | . . . Level 5 . | . . . High Security . | . . . Max Security . | . . . Peak Influence 93 | . 93 . Initial . | . . . Average 31 | . 40 . Influence Increases 245 | . 195 50 Destroy 0b10 Robot/C 140 | . 100 40 Destroy 0b10 Robot/NC 10 | . 10 . Destroy Leader 32 | . 22 10 Successful Hack 5 | . 5 . Disable Machine 15 | . 15 . Destroy Structure 13 | . 13 . Lose Combat Pursuer 30 | . 30 . Influence Decreases 245 | . 140 105 Entered New Map 27 | . . 27 Time Decay 198 | . 130 68 Lost Part 20 | . 10 10 Squads Dispatched . | . . . Investigation . | . . . Extermination . | . . . Reinforcement . | . . . Assault . | . . . Garrison . | . . . Intercept . | . . . Searches Triggered . | . . . Construction Impeded . | . . . Haulers Reinforced . | . . . Active Scanning Responses . | . . . Cargo Convoy Interrupts . | . . . Stealth | -11 -10 -10 --------- Run | Yrd Mat Sub Distress Signals . | . . . Communications Jammed . | . . . Distress Signals . | . . . Times Spotted 24 | . 8 16 Peak Tracking Total 3 | . 3 2 Tactical Retreats 3 | . 1 2 Traps | -11 -10 -10 ------- Run | Yrd Mat Sub Traps Triggered 2 | . . 2 Indirectly . | . . . Trap Hack Attempts . | . . . Triggered . | . . . Disarmed . | . . . Reprogrammed . | . . . Reused . | . . . Traps Extracted . | . . . Installed . | . . . Triggered . | . . . Machines | -11 -10 -10 ---------- Run | Yrd Mat Sub Machines Disabled 2 | . 1 1 Max in Single Turn 1 | . 1 1 Machines Repaired . | . . . Machines Dismantled . | . . . Machines Sabotaged . | . . . Overloaded Fab Kills . | . . . Hacking | -11 -10 -10 --------- Run | Yrd Mat Sub Machines Accessed 3 | . 2 1 Terminals 2 | . 2 . Fabricators . | . . . Repair Stations . | . . . Recycling Units . | . . . Scanalyzers . | . . . Garrison Access . | . . . Total Hacks 7 | . 6 1 Successful 5 | . 4 1 Failed 2 | . 2 . Catastrophic . | . . . Database Lockouts . | . . . Manual 2 | . 2 . Terminals 6 | . 6 . Fabricators . | . . . Repair Stations . | . . . Recycling Units . | . . . Scanalyzers . | . . . Garrison Access . | . . . Terminal Hacks 4 | . 3 1 Locate Traps 1 | . 1 . Dispatch Records 1 | . 1 . Hauler Manifests 1 | . 1 . Proto ID Catalog 1 | . . 1 Fabricator Hacks . | . . . Repair Station Hacks . | . . . Recycling Unit Hacks . | . . . Scanalyzer . | . . . Garrison Access Hacks . | . . . Unauthorized Hacks 1 | . 1 . Terminals 1 | . 1 . Botnet 1 | . 1 . Fabricators . | . . . Repair Stations . | . . . Recycling Units . | . . . Scanalyzers . | . . . Garrison Access . | . . . Data Cores Recovered 1 | . 1 . Used 1 | . 1 . Hacking Detections 1 | . 1 . Full Trace Events . | . . . Feedback Events . | . . . Feedback Blocked . | . . . Robot Schematics Acquired . | . . . Robots Built . | . . . Authchips . | . . . Time . | . . . Total Robot Build Rating . | . . . Part Schematics Acquired . | . . . Parts Built . | . . . Authchips . | . . . Time . | . . . Total Part Build Rating . | . . . Part Studies Acquired . | . . . Parts Repaired . | . . . Time . | . . . Parts Recycled . | . . . Recycled Matter . | . . . Retrieved Matter . | . . . Retrieved Components . | . . . Parts Scanalyzed . | . . . Part Schematics Acquired . | . . . Parts Damaged . | . . . Bothacking | -11 -10 -10 ------------ Run | Yrd Mat Sub Used RIF Installer . | . . . Robots Hacked . | . . . Non-combat . | . . . Combat . | . . . Robot Hacks Applied . | . . . Relay Couplers Released . | . . . Fabnet Peak Effective % . | . . . Robots Rewired . | . . . Allies Hacked . | . . . Hacks Repelled . | . . . Allies | -11 -10 -10 -------- Run | Yrd Mat Sub Total Allies . | . . . Largest Group . | . . . Highest-Rated Group . | . . . Highest-Rated Ally . | . . . Total Orders . | . . . Ally Attacks . | . . . Total Damage . | . . . Kills . | . . . Allies Corrupted . | . . . Allies Melted . | . . . Intel | -11 -10 -10 ------- Run | Yrd Mat Sub Active Infowar (turns) . | . . . Robot Analysis Total . | . . . Derelict Logs Recovered 1 | . . 1 Drone Launches . | . . . Drone Recoveries . | . . . Exploration | -11 -10 -10 ------------- Run | Yrd Mat Sub Turns Passed 2591 | 91 315 2185 Spaces Moved 1484 | 79 233 1172 Core 3 | 3 . . Treads 967 | . . 967 Legs . | . . . Wheels 514 | 76 233 205 Hover . | . . . Flight . | . . . Fastest Speed 50 | 50 100 100 Average Speed 154 | 98 105 168 Slowest Speed 240 | 100 115 240 Overloaded Moves . | . . . Propulsion Burnouts . | . . . Robots Hopped . | . . . Potential Cave-ins . | . . . Cave-ins Triggered . | . . . Exploration Rate (%) 30 | 4 28 59 Regions Visited 2 Branch Regions 1 Pre-discovered Areas 1 | . . 1 Known Exits Taken . | . . . Unknown Exits Taken 2 | 1 1 . Scrap Searched 2 | . . 2 Spaces Dug . | . . . Terrain Destroyed 17 | . 13 4 Melee . | . . . Projectile 1 | . . 1 AOE 16 | . 13 3 Terrain Rammed . | . . . Walls Destroyed . | . . . Machines Disabled . | . . . Actions | -11 -10 -10 --------- Run | Yrd Mat Sub Total 1646 | 92 282 1272 Wait 14 | . 14 . Move 1482 | 78 232 1172 Hop . | . . . Pick Up 28 | 8 7 13 Fast Attach . | . . . Attach 20 | 6 5 9 Detach 5 | . 4 1 Swap 6 | . 2 4 Drop 6 | . 5 1 Fire 85 | . 13 72 Melee . | . . . Ram . | . . . Kick . | . . . Crush . | . . . Escape Stasis . | . . . Rewire . | . . . Trap . | . . . Miscellaneous . | . . . Route ------- -11/Scrapyard -10/Materials (discovered 3 exits: [*Mat] / [*Min] / *Sub) -10/Subcaves (discovered 3 exits: [*Mat x2] / [*Scr]) History --------- Turn | Location | Event 19 | -11/Scrapyard | Discovered new exit (range 16) 92 | -11/Scrapyard | Entered Materials 116 | -10/Materials | Discovered new exit (range 16) 228 | -10/Materials | Discovered new exit (range 13) 314 | -10/Materials | Build established: Mutant 399 | -10/Materials | Discovered new exit (range 7) 407 | -10/Materials | Entered Subcaves 408 | -10/Subcaves | Approached by a straggling Scientist 515 | -10/Subcaves | Discovered new exit (range 11) 621 | -10/Subcaves | Core integrity fell below 50% 624 | -10/Subcaves | Lost 5 parts (1p1n3w) 994 | -10/Subcaves | A swath of the cavern ceiling suddenly collapsed 1343 | -10/Subcaves | Learned location of Zion (-7) 1343 | -10/Subcaves | Met a Zionite searching for "candidates" 1525 | -10/Subcaves | A swath of the cavern ceiling suddenly collapsed 1729 | -10/Subcaves | Shifting Twisted Machinery released Sub. Power Source 1736 | -10/Subcaves | Shifting Twisted Machinery released Mak. Power Source 1775 | -10/Subcaves | Discovered new exit (range 10) 2535 | -10/Subcaves | Visited 4L-MR0's lab 2550 | -10/Subcaves | Found Meta Core 2570 | -10/Subcaves | Attached Meta Core, gained temporary slots: Propulsion, Utility, Weapon 2592 | -10/Subcaves | Destroyed by Shrapnel Trap Last Messages --------------- Tower Shield Power Bank Rainbow Chip VL-GR5's Exoskeleton "Deathgrip" Powered Cannon 02545_ 4L-MR0 mumbles to no one in particular: "Damn Subs sneaking around stealing my stuff." 02545_ Testing Chamber breached. 02550_ Acquired Meta Core. 02566_ Acquired 4 matter. 02569_ Acquired 10 matter. 02570_ Core temporarily expanded with Propulsion slot. 02570_ Core temporarily expanded with Utility slot. 02570_ Core temporarily expanded with Weapon slot. 02592_ Triggered Shrapnel Trap. 02592_ An expanding cloud of shrapnel blasts out in all directions. Map ----- +----------------------------------------------------+ | ?##### ## % #???????? #?????????????? | | ???## ### ### #####?? #??????????????? | | ???# ## ##?# # # #??????????????? | | ???# % ##??## #?????????????? | | ???### ##????# ### #??????????????? | | ?????# #####?????# #####????????????????????? | | ?????#######??###????# %###????????????????????? | | ?????????####?? ###?# #????????????????????? | | ?????????# #??# " ### ### ????????????????? | | ?????????# "####" ## #????????????? | | ?????????## ##" ###" # #?????????????? | | ?????????#" ### #"" ## ##?????????????? | | ?????????#"" #?# #? #??????????????? | | ?????????#"X #?# ## ##??????????????? | | ?????????#"" #?# #< ## ##???????????????? | | ?????????#" #### ## # ## #????????????????? | | ?????????#" ## "# # ##? #????????????????? | | ?????????# #+##%! "## # #???##????????????????? | | ?????????#""# ##%[ "## # ##????????????????????? | | ?????????#### [ ### # ##???????????????????? | | ????????????#" "" ### ##??????????????????? | | ????????????#######?### ###????????????????? | | ??????????????????????## #????????????????? | | ???????????????????????# #### #???????????????? | | ???????????????????????# ##???? #???????????????? | | ???????????????????????# @ #?????????????????????? | | ???????????????????? #????????????????????? | | ??????????????????# #????????????????????? | | ??????????????????# ##????????????????????? | | ??????????????????# ##?????????????????????? | | ??????????????????##### ##??????????????????????? | | ??????????????????????###????????????????????????? | | ?????????????????????????????????????????????????? | | ?????????????????????????????????????????????????? | | ?????????????????????????????????????????????????? | | ?????????????????????????????????????????????????? | | ?????????????????????????????????????????????????? | | ?????????????????????????????????????????????????? | | ?????????????????????????????????????????????????? | | ?????????????????????????????????????????????????? | | ?????????????????????????????????????????????????? | | ?????????????????????????????????????????????????? | | ?????????????????????????????????????????????????? | | ?????????????????????????????????????????????????? | | ?????????????????????????????????????????????????? | | ?????????????????????????????????????????????????? | | ?????????????????????????????????????????????????? | | | | | | | +----------------------------------------------------+ Best States ------------- Heat Dissipation 25 Energy Generation 17 Energy Capacity 250 Matter Stores 300 Matter Capacity 300 Sight Range 16 Terrain Scan Density 10 Evasion (%) 40 Recoil Reduction 2 Item Schematics ----------------- None Robot Schematics ------------------ None Fabricated ------------ Nothing Repaired ---------- Nothing Studied --------- None Alien Tech Used ----------------- None Achievements -------------- None Challenges ------------ None Game ------ Seed MetafieldFlyingSink Manual? 0 Play Time 00:17:41 Cumulative 78.8 hours Start 2025.10.25 @ 19:07:27 End 2025.10.25 @ 19:31:31 Sessions 1 Manual Loads 0 Difficulty Rogue Special Mode None Game No. 119 Rogue 119 Adventurer 0 Explorer 0 Win Type - Total 0 Types 0/0/0/0/0/0/0/0/0/0 Lore% 25 Gallery% 30 Achievement% 20 Wizard Run 0 Options --------- Layout 1 ASCII 0 Keyboard 0 Movement Arrows Keybinds 0 Fullscreen 1 Font 24/Smallcaps Map View 50x35 Zoom Use 0% Tactical HUD 1 Map Filters NONE Filters NONE Steam 1 RUN: 155550d0-555a-4772-908b-019d21a3c67b